Workbook

Sheet JHA-Prod.-Tarief
A1: Overzicht Product, tarief en Jeugdhulpaanbieders 2026 | J1: Versie bestand: 2026.1
A3: Overzicht van de gecontracteerde jeugdhulpaanbieder, producten en tarieven van de inkooprocedures:
A4: Open House, Gecertificeerde Instellingen, Crisis jeugdhulp en Jeugdhulp Plus.
A7: Productcode | B7: Productomschrijving | C7: Productcategorie | D7: Eenheid | E7: Default frequentie | F7: Tarief 2025 (MET afr) | G7: Max. tarief 2026 | H7: Tarief 2026 MET afronding | I7: AGB-Code JHA | J7: Naam JHA
A8: 40A04 | B8: Persoonlijke verzorging | C8: Overig | D8: uur | E8: per week | F8: 71.25 | G8: 74.9 | H8: =MROUND(F8*1.0513,0.05) -> 74.9 | I8: 75751904 | J8: Coöperatie Dichtbij U.A.
A9: 40A04 | B9: Persoonlijke verzorging | C9: Overig | D9: uur | E9: per week | F9: 71.25 | G9: 74.9 | H9: 74.9 | I9: 98100320 | J9: Jemalupe
A10: 41A18 | B10: Dagbesteding | C10: Dagbesteding / dagbehandeling | D10: dagdeel | E10: per week | F10: 76.5 | G10: 80.4 | H10: 80.4 | I10: 06290106 | J10: Stichting Elker
A11: 41A18 | B11: Dagbesteding | C11: Dagbesteding / dagbehandeling | D11: dagdeel | E11: per week | F11: 76.5 | G11: 80.4 | H11: 80.4 | I11: 22227299 | J11: Stichting Yes We Can Clinics
A12: 41A18 | B12: Dagbesteding | C12: Dagbesteding / dagbehandeling | D12: dagdeel | E12: per week | F12: 75.05 | G12: 80.4 | H12: 78.9 | I12: 30300685 | J12: Stichting 's Heeren Loo Zorggroep
A13: 41A18 | B13: Dagbesteding | C13: Dagbesteding / dagbehandeling | D13: dagdeel | E13: per week | F13: 76.5 | G13: 80.4 | H13: 80.4 | I13: 41415236 | J13: Hoeve Paradij
A14: 41A18 | B14: Dagbesteding | C14: Dagbesteding / dagbehandeling | D14: dagdeel | E14: per week | F14: 68.9 | G14: 80.4 | H14: =F14 -> 68.9 | I14: 41526844 | J14: Zorg Op Stee I B.V.
A15: 41A18 | B15: Dagbesteding | C15: Dagbesteding / dagbehandeling | D15: dagdeel | E15: per week | F15: 76.5 | G15: 80.4 | H15: =MROUND(F15*1.0513,0.05) -> 80.4 | I15: 65651117 | J15: Stichting De Zijlen
A16: 41A18 | B16: Dagbesteding | C16: Dagbesteding / dagbehandeling | D16: dagdeel | E16: per week | F16: 76.5 | G16: 80.4 | H16: 80.4 | I16: 65656687 | J16: Stichting Cosis
A17: 41A18 | B17: Dagbesteding | C17: Dagbesteding / dagbehandeling | D17: dagdeel | E17: per week | F17: 76.5 | G17: 80.4 | H17: 80.4 | I17: 73730146 | J17: Cura XL B.V.
A18: 41A18 | B18: Dagbesteding | C18: Dagbesteding / dagbehandeling | D18: dagdeel | E18: per week | F18: 76.5 | G18: 80.4 | H18: 80.4 | I18: 73730183 | J18: Overstag Zorg B.V.
A19: 41A18 | B19: Dagbesteding | C19: Dagbesteding / dagbehandeling | D19: dagdeel | E19: per week | F19: 69.8 | G19: 80.4 | H19: 73.4 | I19: 73730198 | J19: De Kasparhoeve B.V.
A20: 41A18 | B20: Dagbesteding | C20: Dagbesteding / dagbehandeling | D20: dagdeel | E20: per week | F20: 76.5 | G20: 80.4 | H20: 80.4 | I20: 73730415 | J20: Omega Groep B.V.
A21: 41A18 | B21: Dagbesteding | C21: Dagbesteding / dagbehandeling | D21: dagdeel | E21: per week | F21: 76.5 | G21: 80.4 | H21: 80.4 | I21: 75751904 | J21: Coöperatie Dichtbij U.A.
A22: 41A18 | B22: Dagbesteding | C22: Dagbesteding / dagbehandeling | D22: dagdeel | E22: per week | F22: 71.1 | G22: 80.4 | H22: 74.75 | I22: 75752422 | J22: La Luna Care B.V.
A23: 41A18 | B23: Dagbesteding | C23: Dagbesteding / dagbehandeling | D23: dagdeel | E23: per week | F23: 76.5 | G23: 80.4 | H23: 80.4 | I23: 78780153 | J23: GeWoon begeleiding B.V.
A24: 41A18 | B24: Dagbesteding | C24: Dagbesteding / dagbehandeling | D24: dagdeel | E24: per week | F24: 50.5 | G24: 80.4 | H24: 53.1 | I24: 90066114 | J24: Het Naoberhuis B.V.
A25: 41A18 | B25: Dagbesteding | C25: Dagbesteding / dagbehandeling | D25: dagdeel | E25: per week | F25: 74.55 | G25: 80.4 | H25: 78.35 | I25: 98098852 | J25: Statera Jeugd en Gezin B.V.
A26: 41A18 | B26: Dagbesteding | C26: Dagbesteding / dagbehandeling | D26: dagdeel | E26: per week | F26: 76.5 | G26: 80.4 | H26: 80.4 | I26: 98099028 | J26: Protestants-Christelijke Stichting Philadelphia Zorg
A27: 41A18 | B27: Dagbesteding | C27: Dagbesteding / dagbehandeling | D27: dagdeel | E27: per week | F27: 73 | G27: 80.4 | H27: =MROUND(F27*1.0403,0.05) -> 75.95 | I27: 98099815 | J27: Zwat Werkplaats B.V.
A28: 41A18 | B28: Dagbesteding | C28: Dagbesteding / dagbehandeling | D28: dagdeel | E28: per week | F28: 76.5 | G28: 80.4 | H28: =MROUND(F28*1.0513,0.05) -> 80.4 | I28: 98100320 | J28: Jemalupe
A29: 41A18 | B29: Dagbesteding | C29: Dagbesteding / dagbehandeling | D29: dagdeel | E29: per week | F29: 67.7 | G29: 80.4 | H29: =F29 -> 67.7 | I29: 98100943 | J29: De Slingertuin
A30: 41A18 | B30: Dagbesteding | C30: Dagbesteding / dagbehandeling | D30: dagdeel | E30: per week | F30: 76.5 | G30: 80.4 | H30: =MROUND(F30*1.0513,0.05) -> 80.4 | I30: 98101345 | J30: Calidad B.V.
A31: 41A18 | B31: Dagbesteding | C31: Dagbesteding / dagbehandeling | D31: dagdeel | E31: per week | F31: 67.75 | G31: 80.4 | H31: =F31 -> 67.75 | I31: 98102030 | J31: Hof van Arcadia
A32: 41A18 | B32: Dagbesteding | C32: Dagbesteding / dagbehandeling | D32: dagdeel | E32: per week | F32: 67.15 | G32: 80.4 | H32: =MROUND(F32*1.0513,0.05) -> 70.6 | I32: 98102110 | J32: Feniks Zorg en Jeugd B.V.
A33: 41A18 | B33: Dagbesteding | C33: Dagbesteding / dagbehandeling | D33: dagdeel | E33: per week | F33: 76.5 | G33: 80.4 | H33: 80.4 | I33: 98102383 | J33: Cornerstones Jeugdzorg B.V.
A34: 41A18 | B34: Dagbesteding | C34: Dagbesteding / dagbehandeling | D34: dagdeel | E34: per week | F34: 71 | G34: 80.4 | H34: 74.65 | I34: 98103021 | J34: KeuningsHof B.V.
A35: 41A18 | B35: Dagbesteding | C35: Dagbesteding / dagbehandeling | D35: dagdeel | E35: per week | F35: 68.8 | G35: 80.4 | H35: 72.35 | I35: 98104360 | J35: Roccohoeve B.V.
A36: 41A18 | B36: Dagbesteding | C36: Dagbesteding / dagbehandeling | D36: dagdeel | E36: per week | F36: 68.85 | G36: 80.4 | H36: 72.4 | I36: 98104930 | J36: Zorg en Welzijn Academy Knaap B.V.
A37: 41A18 | B37: Dagbesteding | C37: Dagbesteding / dagbehandeling | D37: dagdeel | E37: per week | F37: 68.5 | G37: 80.4 | H37: 72 | I37: 98105253 | J37: Script B.V.
A38: 41A18 | B38: Dagbesteding | C38: Dagbesteding / dagbehandeling | D38: dagdeel | E38: per week | F38: 76.5 | G38: 80.4 | H38: 80.4 | I38: 98105913 | J38: Zorgkracht 12, de Noordelijke Zorgcoöperatie U.A.
A39: 41A18 | B39: Dagbesteding | C39: Dagbesteding / dagbehandeling | D39: dagdeel | E39: per week | F39: 70.9 | G39: 80.4 | H39: =MROUND(F39*1.0403,0.05) -> 73.75 | I39: 98106901 | J39: Vossenburght B.V.
A40: 41G01 | B40: Gezinsdagbehandeling | C40: Dagbesteding / dagbehandeling | D40: uur | E40: per week | F40: 145.05 | G40: 152.5 | H40: =MROUND(F40*1.0513,0.05) -> 152.5 | I40: 06290104 | J40: Stichting Accare
A41: 41G01 | B41: Gezinsdagbehandeling | C41: Dagbesteding / dagbehandeling | D41: uur | E41: per week | G41: 152.5 | H41: 152.5 | I41: 98107597 | J41: De Ezelsbrug B.V.
A42: 41G02 | B42: Dagbehandeling jonge kinderen | C42: Dagbesteding / dagbehandeling | D42: dagdeel | E42: per week | F42: 276.9 | G42: 291.1 | H42: =MROUND(F42*1.0513,0.05) -> 291.1 | I42: 06290106 | J42: Stichting Elker
A43: 41G02 | B43: Dagbehandeling jonge kinderen | C43: Dagbesteding / dagbehandeling | D43: dagdeel | E43: per week | F43: 276.9 | G43: 291.1 | H43: 291.1 | I43: 06290205 | J43: Stichting Jeugdhulp Friesland
A44: 41G02 | B44: Dagbehandeling jonge kinderen | C44: Dagbesteding / dagbehandeling | D44: dagdeel | E44: per week | F44: 276.9 | G44: 291.1 | H44: 291.1 | I44: 65651117 | J44: Stichting De Zijlen
A45: 41G02 | B45: Dagbehandeling jonge kinderen | C45: Dagbesteding / dagbehandeling | D45: dagdeel | E45: per week | F45: 257.05 | G45: 291.1 | H45: 270.25 | I45: 65656687 | J45: Stichting Cosis
A46: 41G02 | B46: Dagbehandeling jonge kinderen | C46: Dagbesteding / dagbehandeling | D46: dagdeel | E46: per week | F46: 276.9 | G46: 291.1 | H46: 291.1 | I46: 73730305 | J46: Stichting Yorneo Beheer
A47: 41G03 | B47: Dagbehandeling jeugdige met sterk stagnerende ontwikkeling | C47: Dagbesteding / dagbehandeling | D47: dagdeel | E47: per week | F47: 137.85 | G47: 159.45 | H47: 144.9 | I47: 30300397 | J47: Stichting De Trans
A48: 41G03 | B48: Dagbehandeling jeugdige met sterk stagnerende ontwikkeling | C48: Dagbesteding / dagbehandeling | D48: dagdeel | E48: per week | F48: 151.65 | G48: 159.45 | H48: 159.45 | I48: 65651117 | J48: Stichting De Zijlen
A49: 41G03 | B49: Dagbehandeling jeugdige met sterk stagnerende ontwikkeling | C49: Dagbesteding / dagbehandeling | D49: dagdeel | E49: per week | F49: 151.65 | G49: 159.45 | H49: 159.45 | I49: 65656687 | J49: Stichting Cosis
A50: 42A01 | B50: Vervoer regulier | C50: Overig | D50: stuk | E50: Totaal binnen geldigheidsduur of tijdsonafhankelijk | F50: 11.9 | G50: 12.5 | H50: 12.5 | I50: 06290106 | J50: Stichting Elker
A51: 42A01 | B51: Vervoer regulier | C51: Overig | D51: stuk | E51: Totaal binnen geldigheidsduur of tijdsonafhankelijk | F51: 11.6 | G51: 12.5 | H51: 12.2 | I51: 30300397 | J51: Stichting De Trans
A52: 42A01 | B52: Vervoer regulier | C52: Overig | D52: stuk | E52: Totaal binnen geldigheidsduur of tijdsonafhankelijk | F52: 11.7 | G52: 12.5 | H52: 12.3 | I52: 30300685 | J52: Stichting 's Heeren Loo Zorggroep
A53: 42A01 | B53: Vervoer regulier | C53: Overig | D53: stuk | E53: Totaal binnen geldigheidsduur of tijdsonafhankelijk | F53: 10.75 | G53: 12.5 | H53: =F53 -> 10.75 | I53: 41526844 | J53: Zorg Op Stee I B.V.
A54: 42A01 | B54: Vervoer regulier | C54: Overig | D54: stuk | E54: Totaal binnen geldigheidsduur of tijdsonafhankelijk | F54: 11.9 | G54: 12.5 | H54: =MROUND(F54*1.0513,0.05) -> 12.5 | I54: 65651117 | J54: Stichting De Zijlen
A55: 42A01 | B55: Vervoer regulier | C55: Overig | D55: stuk | E55: Totaal binnen geldigheidsduur of tijdsonafhankelijk | F55: 11.9 | G55: 12.5 | H55: 12.5 | I55: 65656687 | J55: Stichting Cosis
A56: 42A01 | B56: Vervoer regulier | C56: Overig | D56: stuk | E56: Totaal binnen geldigheidsduur of tijdsonafhankelijk | F56: 11.05 | G56: 12.5 | H56: 11.6 | I56: 73730198 | J56: De Kasparhoeve B.V.
A57: 42A01 | B57: Vervoer regulier | C57: Overig | D57: stuk | E57: Totaal binnen geldigheidsduur of tijdsonafhankelijk | F57: 10.65 | G57: 12.5 | H57: 11.2 | I57: 73730415 | J57: Omega Groep B.V.
A58: 42A01 | B58: Vervoer regulier | C58: Overig | D58: stuk | E58: Totaal binnen geldigheidsduur of tijdsonafhankelijk | F58: 11.9 | G58: 12.5 | H58: 12.5 | I58: 75751904 | J58: Coöperatie Dichtbij U.A.
A59: 42A01 | B59: Vervoer regulier | C59: Overig | D59: stuk | E59: Totaal binnen geldigheidsduur of tijdsonafhankelijk | F59: 11.9 | G59: 12.5 | H59: 12.5 | I59: 78780153 | J59: GeWoon begeleiding B.V.
A60: 42A01 | B60: Vervoer regulier | C60: Overig | D60: stuk | E60: Totaal binnen geldigheidsduur of tijdsonafhankelijk | F60: 11.25 | G60: 12.5 | H60: =MROUND(F60*1.0403,0.05) -> 11.7 | I60: 90019236 | J60: Kinderconsulent Groningen
A61: 42A01 | B61: Vervoer regulier | C61: Overig | D61: stuk | E61: Totaal binnen geldigheidsduur of tijdsonafhankelijk | F61: 11.9 | G61: 12.5 | H61: =MROUND(F61*1.0513,0.05) -> 12.5 | I61: 90054404 | J61: La Hacienda B.V.
A62: 42A01 | B62: Vervoer regulier | C62: Overig | D62: stuk | E62: Totaal binnen geldigheidsduur of tijdsonafhankelijk | F62: 11.9 | G62: 12.5 | H62: =MROUND(F62*1.0513,0.05) -> 12.5 | I62: 98099724 | J62: Stichting Amigo
A63: 42A01 | B63: Vervoer regulier | C63: Overig | D63: stuk | E63: Totaal binnen geldigheidsduur of tijdsonafhankelijk | F63: 11.45 | G63: 12.5 | H63: =MROUND(F63*1.0403,0.05) -> 11.9 | I63: 98099815 | J63: Zwat Werkplaats B.V.
A64: 42A01 | B64: Vervoer regulier | C64: Overig | D64: stuk | E64: Totaal binnen geldigheidsduur of tijdsonafhankelijk | F64: 11.9 | G64: 12.5 | H64: =MROUND(F64*1.0513,0.05) -> 12.5 | I64: 98100080 | J64: Stichting Petten Zorg
A65: 42A01 | B65: Vervoer regulier | C65: Overig | D65: stuk | E65: Totaal binnen geldigheidsduur of tijdsonafhankelijk | F65: 11.9 | G65: 12.5 | H65: =MROUND(F65*1.0513,0.05) -> 12.5 | I65: 98100320 | J65: Jemalupe
A66: 42A01 | B66: Vervoer regulier | C66: Overig | D66: stuk | E66: Totaal binnen geldigheidsduur of tijdsonafhankelijk | F66: 11.15 | G66: 12.5 | H66: =F66 -> 11.15 | I66: 98100943 | J66: De Slingertuin
A67: 42A01 | B67: Vervoer regulier | C67: Overig | D67: stuk | E67: Totaal binnen geldigheidsduur of tijdsonafhankelijk | F67: 11.45 | G67: 12.5 | H67: =MROUND(F67*1.0513,0.05) -> 12.05 | I67: 98101742 | J67: Zorgboerderij Veldzicht Zeegse
A68: 42A01 | B68: Vervoer regulier | C68: Overig | D68: stuk | E68: Totaal binnen geldigheidsduur of tijdsonafhankelijk | F68: 10.4 | G68: 12.5 | H68: =MROUND(F68*1.0513,0.05) -> 10.95 | I68: 98102110 | J68: Feniks Zorg en Jeugd B.V.
A69: 42A01 | B69: Vervoer regulier | C69: Overig | D69: stuk | E69: Totaal binnen geldigheidsduur of tijdsonafhankelijk | F69: 8.1 | G69: 12.5 | H69: =F69 -> 8.1 | I69: 98102991 | J69: Activiteitencentrum De Brink
A70: 42A01 | B70: Vervoer regulier | C70: Overig | D70: stuk | E70: Totaal binnen geldigheidsduur of tijdsonafhankelijk | F70: 11.05 | G70: 12.5 | H70: =MROUND(F70*1.0513,0.05) -> 11.6 | I70: 98103021 | J70: KeuningsHof B.V.
A71: 42A01 | B71: Vervoer regulier | C71: Overig | D71: stuk | E71: Totaal binnen geldigheidsduur of tijdsonafhankelijk | F71: 10.65 | G71: 12.5 | H71: =MROUND(F71*1.0513,0.05) -> 11.2 | I71: 98104360 | J71: Roccohoeve B.V.
A72: 42A01 | B72: Vervoer regulier | C72: Overig | D72: stuk | E72: Totaal binnen geldigheidsduur of tijdsonafhankelijk | F72: 10.2 | G72: 12.5 | H72: =MROUND(F72*1.0513,0.05) -> 10.7 | I72: 98104930 | J72: Zorg en Welzijn Academy Knaap B.V.
A73: 42A01 | B73: Vervoer regulier | C73: Overig | D73: stuk | E73: Totaal binnen geldigheidsduur of tijdsonafhankelijk | F73: 11.9 | G73: 12.5 | H73: =MROUND(F73*1.0513,0.05) -> 12.5 | I73: 98105913 | J73: Zorgkracht 12, de Noordelijke Zorgcoöperatie U.A.
A74: 42A01 | B74: Vervoer regulier | C74: Overig | D74: stuk | E74: Totaal binnen geldigheidsduur of tijdsonafhankelijk | F74: 10 | G74: 12.5 | H74: =MROUND(F74*1.0513,0.05) -> 10.5 | I74: 98106367 | J74: Station Noord B.V.
A75: 42A01 | B75: Vervoer regulier | C75: Overig | D75: stuk | E75: Totaal binnen geldigheidsduur of tijdsonafhankelijk | F75: 11.1 | G75: 12.5 | H75: =MROUND(F75*1.0403,0.05) -> 11.55 | I75: 98106901 | J75: Vossenburght B.V.
A76: 42A01 | B76: Vervoer regulier | C76: Overig | D76: stuk | E76: Totaal binnen geldigheidsduur of tijdsonafhankelijk | F76: 11.9 | G76: 12.5 | H76: =F76 -> 11.9 | I76: 98107576 | J76: Even(T)Huis
A77: 42A02 | B77: Vervoer rolstoel | C77: Overig | D77: stuk | E77: Totaal binnen geldigheidsduur of tijdsonafhankelijk | F77: 25.1 | G77: 26.4 | H77: =MROUND(F77*1.0513,0.05) -> 26.4 | I77: 06290106 | J77: Stichting Elker
A78: 42A02 | B78: Vervoer rolstoel | C78: Overig | D78: stuk | E78: Totaal binnen geldigheidsduur of tijdsonafhankelijk | F78: 24.35 | G78: 26.4 | H78: =MROUND(F78*1.0513,0.05) -> 25.6 | I78: 30300397 | J78: Stichting De Trans
A79: 42A02 | B79: Vervoer rolstoel | C79: Overig | D79: stuk | E79: Totaal binnen geldigheidsduur of tijdsonafhankelijk | F79: 24.55 | G79: 26.4 | H79: =MROUND(F79*1.0513,0.05) -> 25.8 | I79: 30300685 | J79: Stichting 's Heeren Loo Zorggroep
A80: 42A02 | B80: Vervoer rolstoel | C80: Overig | D80: stuk | E80: Totaal binnen geldigheidsduur of tijdsonafhankelijk | F80: 25.1 | G80: 26.4 | H80: =MROUND(F80*1.0513,0.05) -> 26.4 | I80: 65651117 | J80: Stichting De Zijlen
A81: 42A02 | B81: Vervoer rolstoel | C81: Overig | D81: stuk | E81: Totaal binnen geldigheidsduur of tijdsonafhankelijk | F81: 25.1 | G81: 26.4 | H81: =MROUND(F81*1.0513,0.05) -> 26.4 | I81: 65656687 | J81: Stichting Cosis
A82: 43A06 | B82: Verblijf Jeugdhulp Plus | C82: Jeugdhulp Plus | D82: etmaal | E82: Totaal binnen geldigheidsduur of tijdsonafhankelijk | F82: 821.02 | H82: ntb | I82: 06290106 | J82: Stichting Elker
A83: 43A08 | B83: Ouderschapsdiagnostiek met opname | C83: Verblijf/ opname | D83: etmaal | E83: Totaal binnen geldigheidsduur of tijdsonafhankelijk | F83: 456.65 | G83: 480.1 | H83: =MROUND(F83*1.0513,0.05) -> 480.1 | I83: 98103043 | J83: Zorg Anders B.V.
A84: 43A11 | B84: Logeren hoog intensief | C84: Logeren / Respijtzorg | D84: etmaal | E84: Totaal binnen geldigheidsduur of tijdsonafhankelijk | G84: 395.1 | H84: 395.1 | I84: 6290106 | J84: Stichting Elker
A85: 43A11 | B85: Logeren hoog intensief | C85: Logeren / Respijtzorg | D85: etmaal | E85: Totaal binnen geldigheidsduur of tijdsonafhankelijk | F85: 375.8 | G85: 395.1 | H85: =MROUND(F85*1.0513,0.05) -> 395.1 | I85: 65656687 | J85: Stichting Cosis
A86: 43A11 | B86: Logeren hoog intensief | C86: Logeren / Respijtzorg | D86: etmaal | E86: Totaal binnen geldigheidsduur of tijdsonafhankelijk | F86: 375.8 | G86: 395.1 | H86: 395.1 | I86: 73730183 | J86: Overstag Zorg B.V.
A87: 43A11 | B87: Logeren hoog intensief | C87: Logeren / Respijtzorg | D87: etmaal | E87: Totaal binnen geldigheidsduur of tijdsonafhankelijk | F87: 375.8 | G87: 395.1 | H87: 395.1 | I87: 73730415 | J87: Omega Groep B.V.
A88: 43A11 | B88: Logeren hoog intensief | C88: Logeren / Respijtzorg | D88: etmaal | E88: Totaal binnen geldigheidsduur of tijdsonafhankelijk | F88: 375.8 | G88: 395.1 | H88: 395.1 | I88: 75751904 | J88: Coöperatie Dichtbij U.A.
A89: 43A11 | B89: Logeren hoog intensief | C89: Logeren / Respijtzorg | D89: etmaal | E89: Totaal binnen geldigheidsduur of tijdsonafhankelijk | F89: 375.8 | G89: 395.1 | H89: 395.1 | I89: 98099724 | J89: Stichting Amigo
A90: 43A11 | B90: Logeren hoog intensief | C90: Logeren / Respijtzorg | D90: etmaal | E90: Totaal binnen geldigheidsduur of tijdsonafhankelijk | F90: 315.7 | G90: 395.1 | H90: 331.9 | I90: 98106367 | J90: Station Noord B.V.
A91: 43A11 | B91: Logeren hoog intensief | C91: Logeren / Respijtzorg | D91: etmaal | E91: Totaal binnen geldigheidsduur of tijdsonafhankelijk | F91: 375.8 | G91: 395.1 | H91: =F91 -> 375.8 | I91: 98107576 | J91: Even(T)Huis
A92: 43A35 | B92: Verblijf licht | C92: Verblijf/ opname | D92: etmaal | E92: Totaal binnen geldigheidsduur of tijdsonafhankelijk | F92: 162.15 | G92: 170.45 | H92: =MROUND(F92*1.0513,0.05) -> 170.45 | I92: 06290106 | J92: Stichting Elker
A93: 43A35 | B93: Verblijf licht | C93: Verblijf/ opname | D93: etmaal | E93: Totaal binnen geldigheidsduur of tijdsonafhankelijk | G93: 170.45 | H93: 170.45 | I93: 41528449 | J93: Solid Zorg&Welzijn
A94: 43A35 | B94: Verblijf licht | C94: Verblijf/ opname | D94: etmaal | E94: Totaal binnen geldigheidsduur of tijdsonafhankelijk | F94: 158.9 | G94: 170.45 | H94: =MROUND(F94*1.0513,0.05) -> 167.05 | I94: 72727340 | J94: Pi-groep Zorg B.V.
A95: 43A35 | B95: Verblijf licht | C95: Verblijf/ opname | D95: etmaal | E95: Totaal binnen geldigheidsduur of tijdsonafhankelijk | F95: 162.15 | G95: 170.45 | H95: 170.45 | I95: 73730146 | J95: Cura XL B.V.
A96: 43A35 | B96: Verblijf licht | C96: Verblijf/ opname | D96: etmaal | E96: Totaal binnen geldigheidsduur of tijdsonafhankelijk | F96: 162.15 | G96: 170.45 | H96: 170.45 | I96: 73730415 | J96: Omega Groep B.V.
A97: 43A35 | B97: Verblijf licht | C97: Verblijf/ opname | D97: etmaal | E97: Totaal binnen geldigheidsduur of tijdsonafhankelijk | F97: 162.15 | G97: 170.45 | H97: 170.45 | I97: 75751904 | J97: Coöperatie Dichtbij U.A.
A98: 43A35 | B98: Verblijf licht | C98: Verblijf/ opname | D98: etmaal | E98: Totaal binnen geldigheidsduur of tijdsonafhankelijk | F98: 150.7 | G98: 170.45 | H98: 158.45 | I98: 75752422 | J98: La Luna Care B.V.
A99: 43A35 | B99: Verblijf licht | C99: Verblijf/ opname | D99: etmaal | E99: Totaal binnen geldigheidsduur of tijdsonafhankelijk | F99: 162.15 | G99: 170.45 | H99: 170.45 | I99: 78780153 | J99: GeWoon begeleiding B.V.
A100: 43A35 | B100: Verblijf licht | C100: Verblijf/ opname | D100: etmaal | E100: Totaal binnen geldigheidsduur of tijdsonafhankelijk | F100: 162.15 | G100: 170.45 | H100: 170.45 | I100: 90054404 | J100: La Hacienda B.V.
A101: 43A35 | B101: Verblijf licht | C101: Verblijf/ opname | D101: etmaal | E101: Totaal binnen geldigheidsduur of tijdsonafhankelijk | F101: 155.15 | G101: 170.45 | H101: 163.1 | I101: 90066114 | J101: Het Naoberhuis B.V.
A102: 43A35 | B102: Verblijf licht | C102: Verblijf/ opname | D102: etmaal | E102: Totaal binnen geldigheidsduur of tijdsonafhankelijk | F102: 158.25 | G102: 170.45 | H102: =G102 -> 170.45 | I102: 98098852 | J102: Statera Jeugd en Gezin B.V.
A103: 43A35 | B103: Verblijf licht | C103: Verblijf/ opname | D103: etmaal | E103: Totaal binnen geldigheidsduur of tijdsonafhankelijk | F103: 162.15 | G103: 170.45 | H103: =MROUND(F103*1.0513,0.05) -> 170.45 | I103: 98099724 | J103: Stichting Amigo
A104: 43A35 | B104: Verblijf licht | C104: Verblijf/ opname | D104: etmaal | E104: Totaal binnen geldigheidsduur of tijdsonafhankelijk | F104: 142.8 | G104: 170.45 | H104: =MROUND(F104*1.0513,0.05) -> 150.15 | I104: 98101596 | J104: Xperanza Nederland B.V.
A105: 43A35 | B105: Verblijf licht | C105: Verblijf/ opname | D105: etmaal | E105: Totaal binnen geldigheidsduur of tijdsonafhankelijk | F105: 162.15 | G105: 170.45 | H105: =MROUND(F105*1.0513,0.05) -> 170.45 | I105: 98102383 | J105: Cornerstones Jeugdzorg B.V.
A106: 43A35 | B106: Verblijf licht | C106: Verblijf/ opname | D106: etmaal | E106: Totaal binnen geldigheidsduur of tijdsonafhankelijk | F106: 149.55 | G106: 170.45 | H106: =MROUND(F106*1.0513,0.05) -> 157.2 | I106: 98102631 | J106: Zorg en Coaching Noord Nederland B.V.
A107: 43A35 | B107: Verblijf licht | C107: Verblijf/ opname | D107: etmaal | E107: Totaal binnen geldigheidsduur of tijdsonafhankelijk | G107: 170.45 | H107: 169.5 | I107: 98104067 | J107: Gezinshuis Margriet
A108: 43A35 | B108: Verblijf licht | C108: Verblijf/ opname | D108: etmaal | E108: Totaal binnen geldigheidsduur of tijdsonafhankelijk | F108: 162.15 | G108: 170.45 | H108: =MROUND(F108*1.0513,0.05) -> 170.45 | I108: 98104252 | J108: Coöperatie Stee 050
A109: 43A35 | B109: Verblijf licht | C109: Verblijf/ opname | D109: etmaal | E109: Totaal binnen geldigheidsduur of tijdsonafhankelijk | G109: 170.45 | H109: 170.45 | I109: 98104360 | J109: Roccohoeve B.V.
A110: 43A35 | B110: Verblijf licht | C110: Verblijf/ opname | D110: etmaal | E110: Totaal binnen geldigheidsduur of tijdsonafhankelijk | G110: 170.45 | H110: 168.25 | I110: 98104386 | J110: Soliris Zorg B.V.
A111: 43A35 | B111: Verblijf licht | C111: Verblijf/ opname | D111: etmaal | E111: Totaal binnen geldigheidsduur of tijdsonafhankelijk | F111: 162.15 | G111: 170.45 | H111: =MROUND(F111*1.0513,0.05) -> 170.45 | I111: 98105913 | J111: Zorgkracht 12, de Noordelijke Zorgcoöperatie U.A.
A112: 43A35 | B112: Verblijf licht | C112: Verblijf/ opname | D112: etmaal | E112: Totaal binnen geldigheidsduur of tijdsonafhankelijk | F112: 136.25 | G112: 170.45 | H112: =MROUND(F112*1.0513,0.05) -> 143.25 | I112: 98106367 | J112: Station Noord B.V.
A113: 43A35 | B113: Verblijf licht | C113: Verblijf/ opname | D113: etmaal | E113: Totaal binnen geldigheidsduur of tijdsonafhankelijk | G113: 170.45 | H113: 170.45 | I113: 98107397 | J113: Dongala Zorg B.V.
A114: 43A37 | B114: Verblijfstraject middelzwaar | C114: Verblijf/ opname | D114: etmaal | E114: Totaal binnen geldigheidsduur of tijdsonafhankelijk | F114: 367.05 | G114: 418.6 | H114: =G114 -> 418.6 | I114: 06290105 | J114: Stichting Verslavingszorg Noord Nederland
A115: 43A37 | B115: Verblijfstraject middelzwaar | C115: Verblijf/ opname | D115: etmaal | E115: Totaal binnen geldigheidsduur of tijdsonafhankelijk | F115: 398.15 | G115: 418.6 | H115: =MROUND(F115*1.0513,0.05) -> 418.6 | I115: 06290106 | J115: Stichting Elker
A116: 43A37 | B116: Verblijfstraject middelzwaar | C116: Verblijf/ opname | D116: etmaal | E116: Totaal binnen geldigheidsduur of tijdsonafhankelijk | F116: 294 | G116: 418.6 | H116: 309.1 | I116: 30300514 | J116: Stichting Ambiq
A117: 43A37 | B117: Verblijfstraject middelzwaar | C117: Verblijf/ opname | D117: etmaal | E117: Totaal binnen geldigheidsduur of tijdsonafhankelijk | F117: 390.35 | G117: 418.6 | H117: 410.35 | I117: 30300685 | J117: Stichting 's Heeren Loo Zorggroep
A118: 43A37 | B118: Verblijfstraject middelzwaar | C118: Verblijf/ opname | D118: etmaal | E118: Totaal binnen geldigheidsduur of tijdsonafhankelijk | F118: 398.15 | G118: 418.6 | H118: 418.6 | I118: 65651117 | J118: Stichting De Zijlen
A119: 43A37 | B119: Verblijfstraject middelzwaar | C119: Verblijf/ opname | D119: etmaal | E119: Totaal binnen geldigheidsduur of tijdsonafhankelijk | F119: 398.15 | G119: 418.6 | H119: 418.6 | I119: 65656687 | J119: Stichting Cosis
A120: 43A37 | B120: Verblijfstraject middelzwaar | C120: Verblijf/ opname | D120: etmaal | E120: Totaal binnen geldigheidsduur of tijdsonafhankelijk | F120: 398.15 | G120: 418.6 | H120: 418.6 | I120: 72727349 | J120: Stichting Fier
A121: 43A37 | B121: Verblijfstraject middelzwaar | C121: Verblijf/ opname | D121: etmaal | E121: Totaal binnen geldigheidsduur of tijdsonafhankelijk | F121: 384.7 | G121: 418.6 | H121: =MROUND(F121*1.0403,0.05) -> 400.2 | I121: 72727446 | J121: Stichting Buurderij De Wilde Haan
A122: 43A37 | B122: Verblijfstraject middelzwaar | C122: Verblijf/ opname | D122: etmaal | E122: Totaal binnen geldigheidsduur of tijdsonafhankelijk | F122: 398.15 | G122: 418.6 | H122: =MROUND(F122*1.0513,0.05) -> 418.6 | I122: 73730146 | J122: Cura XL B.V.
A123: 43A37 | B123: Verblijfstraject middelzwaar | C123: Verblijf/ opname | D123: etmaal | E123: Totaal binnen geldigheidsduur of tijdsonafhankelijk | F123: 398.15 | G123: 418.6 | H123: 418.6 | I123: 73730183 | J123: Overstag Zorg B.V.
A124: 43A37 | B124: Verblijfstraject middelzwaar | C124: Verblijf/ opname | D124: etmaal | E124: Totaal binnen geldigheidsduur of tijdsonafhankelijk | F124: 398.15 | G124: 418.6 | H124: 418.6 | I124: 73730305 | J124: Stichting Yorneo Beheer
A125: 43A37 | B125: Verblijfstraject middelzwaar | C125: Verblijf/ opname | D125: etmaal | E125: Totaal binnen geldigheidsduur of tijdsonafhankelijk | F125: 398.15 | G125: 418.6 | H125: 418.6 | I125: 90054404 | J125: La Hacienda B.V.
A126: 43A37 | B126: Verblijfstraject middelzwaar | C126: Verblijf/ opname | D126: etmaal | E126: Totaal binnen geldigheidsduur of tijdsonafhankelijk | F126: 398.15 | G126: 418.6 | H126: 418.6 | I126: 98099048 | J126: Stichting Leger des Heils Welzijns- en Gezondheidszorg
A127: 43A37 | B127: Verblijfstraject middelzwaar | C127: Verblijf/ opname | D127: etmaal | E127: Totaal binnen geldigheidsduur of tijdsonafhankelijk | F127: 398.15 | G127: 418.6 | H127: 418.6 | I127: 98099724 | J127: Stichting Amigo
A128: 43A37 | B128: Verblijfstraject middelzwaar | C128: Verblijf/ opname | D128: etmaal | E128: Totaal binnen geldigheidsduur of tijdsonafhankelijk | F128: 398.15 | G128: 418.6 | H128: 418.6 | I128: 98101345 | J128: Calidad B.V.
A129: 43A37 | B129: Verblijfstraject middelzwaar | C129: Verblijf/ opname | D129: etmaal | E129: Totaal binnen geldigheidsduur of tijdsonafhankelijk | F129: 350.65 | G129: 418.6 | H129: 368.65 | I129: 98101596 | J129: Xperanza Nederland B.V.
A130: 43A37 | B130: Verblijfstraject middelzwaar | C130: Verblijf/ opname | D130: etmaal | E130: Totaal binnen geldigheidsduur of tijdsonafhankelijk | F130: 359.9 | G130: 418.6 | H130: 378.35 | I130: 98102110 | J130: Feniks Zorg en Jeugd B.V.
A131: 43A37 | B131: Verblijfstraject middelzwaar | C131: Verblijf/ opname | D131: etmaal | E131: Totaal binnen geldigheidsduur of tijdsonafhankelijk | F131: 388.45 | G131: 418.6 | H131: 408.4 | I131: 98103043 | J131: Zorg Anders B.V.
A132: 43A37 | B132: Verblijfstraject middelzwaar | C132: Verblijf/ opname | D132: etmaal | E132: Totaal binnen geldigheidsduur of tijdsonafhankelijk | G132: 418.6 | H132: 418.6 | I132: 98104119 | J132: Stichting ZorgInitiatief de Bosk
A133: 43A37 | B133: Verblijfstraject middelzwaar | C133: Verblijf/ opname | D133: etmaal | E133: Totaal binnen geldigheidsduur of tijdsonafhankelijk | F133: 398.15 | G133: 418.6 | H133: =MROUND(F133*1.0513,0.05) -> 418.6 | I133: 98105037 | J133: De Ruumte B.V.
A134: 43A37 | B134: Verblijfstraject middelzwaar | C134: Verblijf/ opname | D134: etmaal | E134: Totaal binnen geldigheidsduur of tijdsonafhankelijk | F134: 398.15 | G134: 418.6 | H134: =MROUND(F134*1.0513,0.05) -> 418.6 | I134: 98105913 | J134: Zorgkracht 12, de Noordelijke Zorgcoöperatie U.A.
A135: 43A37 | B135: Verblijfstraject middelzwaar | C135: Verblijf/ opname | D135: etmaal | E135: Totaal binnen geldigheidsduur of tijdsonafhankelijk | F135: 398 | G135: 418.6 | H135: =F135 -> 398 | I135: 98105917 | J135: X-Tense B.V.
A136: 43A37 | B136: Verblijfstraject middelzwaar | C136: Verblijf/ opname | D136: etmaal | E136: Totaal binnen geldigheidsduur of tijdsonafhankelijk | F136: 377.85 | G136: 418.6 | H136: =MROUND(F136*1.0513,0.05) -> 397.25 | I136: 98106367 | J136: Station Noord B.V.
A137: 43A38 | B137: Verblijfstraject zwaar | C137: Verblijf/ opname | D137: etmaal | E137: Totaal binnen geldigheidsduur of tijdsonafhankelijk | F137: 454.9 | G137: 478.25 | H137: 478.25 | I137: 06290106 | J137: Stichting Elker
A138: 43A38 | B138: Verblijfstraject zwaar | C138: Verblijf/ opname | D138: etmaal | E138: Totaal binnen geldigheidsduur of tijdsonafhankelijk | F138: 454.9 | G138: 478.25 | H138: 478.25 | I138: 22227299 | J138: Stichting Yes We Can Clinics
A139: 43A38 | B139: Verblijfstraject zwaar | C139: Verblijf/ opname | D139: etmaal | E139: Totaal binnen geldigheidsduur of tijdsonafhankelijk | F139: 454.9 | G139: 478.25 | H139: 478.25 | I139: 30300514 | J139: Stichting Ambiq
A140: 43A38 | B140: Verblijfstraject zwaar | C140: Verblijf/ opname | D140: etmaal | E140: Totaal binnen geldigheidsduur of tijdsonafhankelijk | F140: 446 | G140: 478.25 | H140: 468.9 | I140: 30300685 | J140: Stichting 's Heeren Loo Zorggroep
A141: 43A38 | B141: Verblijfstraject zwaar | C141: Verblijf/ opname | D141: etmaal | E141: Totaal binnen geldigheidsduur of tijdsonafhankelijk | F141: 454.9 | G141: 478.25 | H141: 478.25 | I141: 65656687 | J141: Stichting Cosis
A142: 43A38 | B142: Verblijfstraject zwaar | C142: Verblijf/ opname | D142: etmaal | E142: Totaal binnen geldigheidsduur of tijdsonafhankelijk | F142: 454.9 | G142: 478.25 | H142: 478.25 | I142: 72727349 | J142: Stichting Fier
A143: 43A38 | B143: Verblijfstraject zwaar | C143: Verblijf/ opname | D143: etmaal | E143: Totaal binnen geldigheidsduur of tijdsonafhankelijk | F143: 454.9 | G143: 478.25 | H143: 478.25 | I143: 73730415 | J143: Omega Groep B.V.
A144: 43A38 | B144: Verblijfstraject zwaar | C144: Verblijf/ opname | D144: etmaal | E144: Totaal binnen geldigheidsduur of tijdsonafhankelijk | F144: 454.9 | G144: 478.25 | H144: 478.25 | I144: 98099048 | J144: Stichting Leger des Heils Welzijns- en Gezondheidszorg
A145: 43A38 | B145: Verblijfstraject zwaar | C145: Verblijf/ opname | D145: etmaal | E145: Totaal binnen geldigheidsduur of tijdsonafhankelijk | F145: 400.6 | G145: 478.25 | H145: 421.15 | I145: 98101596 | J145: Xperanza Nederland B.V.
A146: 43B02 | B146: Verblijf Jeugdhulp Plus (Drenthe) | C146: Jeugdhulp Plus | D146: etmaal | E146: Totaal binnen geldigheidsduur of tijdsonafhankelijk | G146: nvt | H146: ntb | I146: 06290106 | J146: Stichting Elker
A147: 43B12 | B147: Voorwaardelijke machtiging gesloten jeugdhulp | C147: Jeugdhulp Plus | D147: stuk (per half jaar) | E147: Totaal binnen geldigheidsduur of tijdsonafhankelijk | F147: 0 | G147: nvt | H147: 0 | I147: 06290106 | J147: Stichting Elker
A148: 43B19 | B148: Verblijfstraject extra zwaar | C148: Verblijf/ opname | D148: etmaal | E148: Totaal binnen geldigheidsduur of tijdsonafhankelijk | F148: 478.4 | G148: 502.95 | H148: =MROUND(F148*1.0513,0.05) -> 502.95 | I148: 72727349 | J148: Stichting Fier
A149: 43G01 | B149: Specialistische begeleiding/behandeling pleegzorg | C149: Verblijf/ opname | D149: uur | E149: per week | F149: 113.4 | G149: 119.2 | H149: 119.2 | I149: 06290106 | J149: Stichting Elker
A150: 43G01 | B150: Specialistische begeleiding/behandeling pleegzorg | C150: Verblijf/ opname | D150: uur | E150: per week | F150: 113.4 | G150: 119.2 | H150: 119.2 | I150: 73730305 | J150: Stichting Yorneo Beheer
A151: 43G01 | B151: Specialistische begeleiding/behandeling pleegzorg | C151: Verblijf/ opname | D151: uur | E151: per week | F151: 113.4 | G151: 119.2 | H151: 119.2 | I151: 98099048 | J151: Stichting Leger des Heils Welzijns- en Gezondheidszorg
A152: 43G01 | B152: Specialistische begeleiding/behandeling pleegzorg | C152: Verblijf/ opname | D152: uur | E152: per week | F152: 109.35 | G152: 119.2 | H152: 114.95 | I152: 98099350 | J152: William Schrikker Stichting Gezinsvormen
A153: 43G08 | B153: Verblijf middel woonhoeve | C153: Verblijf/ opname | D153: etmaal | E153: Totaal binnen geldigheidsduur of tijdsonafhankelijk | F153: 118.7 | G153: 124.8 | H153: 124.8 | I153: 75751904 | J153: Coöperatie Dichtbij U.A.
A154: 43G08 | B154: Verblijf middel woonhoeve | C154: Verblijf/ opname | D154: etmaal | E154: Totaal binnen geldigheidsduur of tijdsonafhankelijk | F154: 114.4 | G154: 124.8 | H154: 120.25 | I154: 98101742 | J154: Zorgboerderij Veldzicht Zeegse
A155: 43G08 | B155: Verblijf middel woonhoeve | C155: Verblijf/ opname | D155: etmaal | E155: Totaal binnen geldigheidsduur of tijdsonafhankelijk | F155: 110.25 | G155: 124.8 | H155: 115.9 | I155: 98103021 | J155: KeuningsHof B.V.
A156: 43G08 | B156: Verblijf middel woonhoeve | C156: Verblijf/ opname | D156: etmaal | E156: Totaal binnen geldigheidsduur of tijdsonafhankelijk | F156: 109.95 | G156: 124.8 | H156: =MROUND(F156*1.0403,0.05) -> 114.4 | I156: 98106901 | J156: Vossenburght B.V.
A157: 43G09 | B157: Verblijf middel gezinshuis | C157: Verblijf/ opname | D157: etmaal | E157: per week | F157: 131.9 | G157: 138.65 | H157: =MROUND(F157*1.0513,0.05) -> 138.65 | I157: 06290106 | J157: Stichting Elker
A158: 43G09 | B158: Verblijf middel gezinshuis | C158: Verblijf/ opname | D158: etmaal | E158: per week | F158: 131.9 | G158: 138.65 | H158: =MROUND(F158*1.0513,0.05) -> 138.65 | I158: 65651117 | J158: Stichting De Zijlen
A159: 43G09 | B159: Verblijf middel gezinshuis | C159: Verblijf/ opname | D159: etmaal | E159: per week | F159: 131.9 | G159: 138.65 | H159: =MROUND(F159*1.0513,0.05) -> 138.65 | I159: 65656687 | J159: Stichting Cosis
A160: 43G09 | B160: Verblijf middel gezinshuis | C160: Verblijf/ opname | D160: etmaal | E160: per week | F160: 131.9 | G160: 138.65 | H160: =MROUND(F160*1.0513,0.05) -> 138.65 | I160: 73730415 | J160: Omega Groep B.V.
A161: 43G09 | B161: Verblijf middel gezinshuis | C161: Verblijf/ opname | D161: etmaal | E161: per week | F161: 131.9 | G161: 138.65 | H161: =MROUND(F161*1.0513,0.05) -> 138.65 | I161: 75751904 | J161: Coöperatie Dichtbij U.A.
A162: 43G09 | B162: Verblijf middel gezinshuis | C162: Verblijf/ opname | D162: etmaal | E162: per week | F162: 128.1 | G162: 138.65 | H162: =MROUND(F162*1.0403,0.05) -> 133.25 | I162: 90019236 | J162: Kinderconsulent Groningen
A163: 43G09 | B163: Verblijf middel gezinshuis | C163: Verblijf/ opname | D163: etmaal | E163: per week | F163: 129.3 | G163: 138.65 | H163: =MROUND(F163*1.0513,0.05) -> 135.95 | I163: 90066114 | J163: Het Naoberhuis B.V.
A164: 43G09 | B164: Verblijf middel gezinshuis | C164: Verblijf/ opname | D164: etmaal | E164: per week | F164: 131.9 | G164: 138.65 | H164: 138.65 | I164: 98100080 | J164: Stichting Petten Zorg
A165: 43G09 | B165: Verblijf middel gezinshuis | C165: Verblijf/ opname | D165: etmaal | E165: per week | F165: 131.9 | G165: 138.65 | H165: 138.65 | I165: 98102383 | J165: Cornerstones Jeugdzorg B.V.
A166: 43G09 | B166: Verblijf middel gezinshuis | C166: Verblijf/ opname | D166: etmaal | E166: per week | F166: 131.9 | G166: 138.65 | H166: 138.65 | I166: 98105913 | J166: Zorgkracht 12, de Noordelijke Zorgcoöperatie U.A.
A167: 43G10 | B167: Verblijf middel gezinshuis-plus | C167: Verblijf/ opname | D167: etmaal | E167: per week | F167: 184.6 | G167: 194.05 | H167: 194.05 | I167: 06290106 | J167: Stichting Elker
A168: 43G10 | B168: Verblijf middel gezinshuis-plus | C168: Verblijf/ opname | D168: etmaal | E168: per week | F168: 180.95 | G168: 194.05 | H168: 190.25 | I168: 30300685 | J168: Stichting 's Heeren Loo Zorggroep
A169: 43G10 | B169: Verblijf middel gezinshuis-plus | C169: Verblijf/ opname | D169: etmaal | E169: per week | F169: 184.6 | G169: 194.05 | H169: 194.05 | I169: 65651117 | J169: Stichting De Zijlen
A170: 43G10 | B170: Verblijf middel gezinshuis-plus | C170: Verblijf/ opname | D170: etmaal | E170: per week | F170: 184.6 | G170: 194.05 | H170: 194.05 | I170: 65656687 | J170: Stichting Cosis
A171: 43G10 | B171: Verblijf middel gezinshuis-plus | C171: Verblijf/ opname | D171: etmaal | E171: per week | F171: 184.6 | G171: 194.05 | H171: 194.05 | I171: 66660705 | J171: Stichting Driestroom
A172: 43G10 | B172: Verblijf middel gezinshuis-plus | C172: Verblijf/ opname | D172: etmaal | E172: per week | F172: 184.6 | G172: 194.05 | H172: 194.05 | I172: 73730305 | J172: Stichting Yorneo Beheer
A173: 43G10 | B173: Verblijf middel gezinshuis-plus | C173: Verblijf/ opname | D173: etmaal | E173: per week | F173: 184.6 | G173: 194.05 | H173: 194.05 | I173: 73730415 | J173: Omega Groep B.V.
A174: 43G10 | B174: Verblijf middel gezinshuis-plus | C174: Verblijf/ opname | D174: etmaal | E174: per week | F174: 184.6 | G174: 194.05 | H174: 194.05 | I174: 98099155 | J174: Stichting Siriz
A175: 43G10 | B175: Verblijf middel gezinshuis-plus | C175: Verblijf/ opname | D175: etmaal | E175: per week | F175: 177.95 | G175: 194.05 | H175: 187.1 | I175: 98099350 | J175: William Schrikker Stichting Gezinsvormen
A176: 43G10 | B176: Verblijf middel gezinshuis-plus | C176: Verblijf/ opname | D176: etmaal | E176: per week | F176: 184.6 | G176: 194.05 | H176: 194.05 | I176: 98102383 | J176: Cornerstones Jeugdzorg B.V.
A177: 43G10 | B177: Verblijf middel gezinshuis-plus | C177: Verblijf/ opname | D177: etmaal | E177: per week | F177: 166.85 | G177: 194.05 | H177: 175.4 | I177: 98104067 | J177: Gezinshuis Margriet
A178: 43G10 | B178: Verblijf middel gezinshuis-plus | C178: Verblijf/ opname | D178: etmaal | E178: per week | F178: 184.6 | G178: 194.05 | H178: 194.05 | I178: 98105913 | J178: Zorgkracht 12, de Noordelijke Zorgcoöperatie U.A.
A179: 43G11 | B179: Opname kort intensief | C179: Verblijf/ opname | D179: etmaal | E179: Totaal binnen geldigheidsduur of tijdsonafhankelijk | F179: 477.25 | G179: 501.75 | H179: 501.75 | I179: 06290104 | J179: Stichting Accare
A180: 43G11 | B180: Opname kort intensief | C180: Verblijf/ opname | D180: etmaal | E180: Totaal binnen geldigheidsduur of tijdsonafhankelijk | F180: 440 | G180: 501.75 | H180: =G180 -> 501.75 | I180: 06290105 | J180: Stichting Verslavingszorg Noord Nederland
A181: 43G12 | B181: Klinisch verblijf Accare | C181: Klinisch verblijf | D181: etmaal | E181: Totaal binnen geldigheidsduur of tijdsonafhankelijk | G181: nvt | H181: nvt | I181: 06290104 | J181: Stichting Accare
A182: 43G13 | B182: Verlengd klinisch verblijf Accare | C182: Klinisch verblijf | D182: etmaal | E182: Totaal binnen geldigheidsduur of tijdsonafhankelijk | G182: nvt | H182: nvt | I182: 06290104 | J182: Stichting Accare
A183: 43G19 | B183: Kleinschalige Voorziening ombouwopdracht SPUK | C183: Verblijf | D183: etmaal | F183: 661.25 | G183: 695.15 | H183: =MROUND(F183*1.0513,0.05) -> 695.15 | I183: 6290106 | J183: Stichting Elker
A184: 43G19 | B184: Kleinschalige Voorziening ombouwopdracht SPUK | C184: Verblijf | D184: etmaal | F184: 661.25 | G184: 695.15 | H184: =MROUND(F184*1.0513,0.05) -> 695.15 | I184: 30300514 | J184: Stichting Ambiq
A185: 43G19 | B185: Kleinschalige Voorziening ombouwopdracht SPUK | C185: Verblijf | D185: etmaal | F185: 661.25 | G185: 695.15 | H185: =MROUND(F185*1.0513,0.05) -> 695.15 | I185: 98099048 | J185: Stichting Leger des Heils Welzijns- en Gezondheidszorg
A186: 44A07 | B186: Pleegzorg | C186: Verblijf/ opname | D186: etmaal | E186: per week | F186: 52.75 | G186: 55.45 | H186: 56.7 | I186: 06290106 | J186: Stichting Elker
A187: 44A07 | B187: Pleegzorg | C187: Verblijf/ opname | D187: etmaal | E187: per week | F187: 52.75 | G187: 55.45 | H187: 56.7 | I187: 73730305 | J187: Stichting Yorneo Beheer
A188: 44A07 | B188: Pleegzorg | C188: Verblijf/ opname | D188: etmaal | E188: per week | F188: 52.75 | G188: 55.45 | H188: 56.7 | I188: 98099048 | J188: Stichting Leger des Heils Welzijns- en Gezondheidszorg
A189: 44A07 | B189: Pleegzorg | C189: Verblijf/ opname | D189: etmaal | E189: per week | F189: 52.75 | G189: 55.45 | H189: 56.7 | I189: 98099350 | J189: William Schrikker Stichting Gezinsvormen
A190: 44A09 | B190: Logeren laag intensief | C190: Logeren / Respijtzorg | D190: etmaal | E190: Totaal binnen geldigheidsduur of tijdsonafhankelijk | F190: 237.3 | G190: 249.45 | H190: =MROUND(F190*1.0513,0.05) -> 249.45 | I190: 06290106 | J190: Stichting Elker
A191: 44A09 | B191: Logeren laag intensief | C191: Logeren / Respijtzorg | D191: etmaal | E191: Totaal binnen geldigheidsduur of tijdsonafhankelijk | F191: 213.7 | G191: 249.45 | H191: =F191 -> 213.7 | I191: 41526844 | J191: Zorg Op Stee I B.V.
A192: 44A09 | B192: Logeren laag intensief | C192: Logeren / Respijtzorg | D192: etmaal | E192: Totaal binnen geldigheidsduur of tijdsonafhankelijk | F192: 237.3 | G192: 249.45 | H192: =MROUND(F192*1.0513,0.05) -> 249.45 | I192: 65651117 | J192: Stichting De Zijlen
A193: 44A09 | B193: Logeren laag intensief | C193: Logeren / Respijtzorg | D193: etmaal | E193: Totaal binnen geldigheidsduur of tijdsonafhankelijk | F193: 237.3 | G193: 249.45 | H193: =MROUND(F193*1.0513,0.05) -> 249.45 | I193: 65656687 | J193: Stichting Cosis
A194: 44A09 | B194: Logeren laag intensief | C194: Logeren / Respijtzorg | D194: etmaal | E194: Totaal binnen geldigheidsduur of tijdsonafhankelijk | F194: 218.3 | G194: 249.45 | H194: =MROUND(F194*1.0513,0.05) -> 229.5 | I194: 73730198 | J194: De Kasparhoeve B.V.
A195: 44A09 | B195: Logeren laag intensief | C195: Logeren / Respijtzorg | D195: etmaal | E195: Totaal binnen geldigheidsduur of tijdsonafhankelijk | F195: 237.3 | G195: 249.45 | H195: =MROUND(F195*1.0513,0.05) -> 249.45 | I195: 73730415 | J195: Omega Groep B.V.
A196: 44A09 | B196: Logeren laag intensief | C196: Logeren / Respijtzorg | D196: etmaal | E196: Totaal binnen geldigheidsduur of tijdsonafhankelijk | F196: 237.3 | G196: 249.45 | H196: =MROUND(F196*1.0513,0.05) -> 249.45 | I196: 75751904 | J196: Coöperatie Dichtbij U.A.
A197: 44A09 | B197: Logeren laag intensief | C197: Logeren / Respijtzorg | D197: etmaal | E197: Totaal binnen geldigheidsduur of tijdsonafhankelijk | F197: 224.85 | G197: 249.45 | H197: =MROUND(F197*1.0403,0.05) -> 233.9 | I197: 90019236 | J197: Kinderconsulent Groningen
A198: 44A09 | B198: Logeren laag intensief | C198: Logeren / Respijtzorg | D198: etmaal | E198: Totaal binnen geldigheidsduur of tijdsonafhankelijk | F198: 237.3 | G198: 249.45 | H198: =MROUND(F198*1.0513,0.05) -> 249.45 | I198: 90054404 | J198: La Hacienda B.V.
A199: 44A09 | B199: Logeren laag intensief | C199: Logeren / Respijtzorg | D199: etmaal | E199: Totaal binnen geldigheidsduur of tijdsonafhankelijk | F199: 195.45 | G199: 249.45 | H199: 205.5 | I199: 90066114 | J199: Het Naoberhuis B.V.
A200: 44A09 | B200: Logeren laag intensief | C200: Logeren / Respijtzorg | D200: etmaal | E200: Totaal binnen geldigheidsduur of tijdsonafhankelijk | F200: 237.3 | G200: 249.45 | H200: 249.45 | I200: 98100080 | J200: Stichting Petten Zorg
A201: 44A09 | B201: Logeren laag intensief | C201: Logeren / Respijtzorg | D201: etmaal | E201: Totaal binnen geldigheidsduur of tijdsonafhankelijk | F201: 237.3 | G201: 249.45 | H201: 249.45 | I201: 98100320 | J201: Jemalupe
A202: 44A09 | B202: Logeren laag intensief | C202: Logeren / Respijtzorg | D202: etmaal | E202: Totaal binnen geldigheidsduur of tijdsonafhankelijk | F202: 228.75 | G202: 249.45 | H202: 240.5 | I202: 98101742 | J202: Zorgboerderij Veldzicht Zeegse
A203: 44A09 | B203: Logeren laag intensief | C203: Logeren / Respijtzorg | D203: etmaal | E203: Totaal binnen geldigheidsduur of tijdsonafhankelijk | F203: 237.3 | G203: 249.45 | H203: 249.45 | I203: 98102383 | J203: Cornerstones Jeugdzorg B.V.
... 692 more rows

Sheet On hold (hidden)
A1: 40A04 | B1: Persoonlijke verzorging | C1: Overig | D1: uur | E1: per week | F1: 71.25 | G1: 74.9 | H1: 74.9 | I1: 73730133 | J1: Stichting BEZINNZorg
A2: 41A18 | B2: Dagbesteding | C2: Dagbesteding / dagbehandeling | D2: dagdeel | E2: per week | F2: 76.5 | G2: 80.4 | H2: 80.4 | I2: 73730133 | J2: Stichting BEZINNZorg
A3: 42A01 | B3: Vervoer regulier | C3: Overig | D3: stuk | E3: Totaal binnen geldigheidsduur of tijdsonafhankelijk | F3: 11.9 | G3: 12.5 | H3: 12.5 | I3: 73730133 | J3: Stichting BEZINNZorg
A4: 42A02 | B4: Vervoer rolstoel | C4: Overig | D4: stuk | E4: Totaal binnen geldigheidsduur of tijdsonafhankelijk | F4: 25.1 | G4: 26.4 | H4: 26.4 | I4: 73730133 | J4: Stichting BEZINNZorg
A5: 43A11 | B5: Logeren hoog intensief | C5: Logeren / Respijtzorg | D5: etmaal | E5: Totaal binnen geldigheidsduur of tijdsonafhankelijk | F5: 375.8 | G5: 395.1 | H5: 395.1 | I5: 73730133 | J5: Stichting BEZINNZorg
A6: 43A35 | B6: Verblijf licht | C6: Verblijf/ opname | D6: etmaal | E6: Totaal binnen geldigheidsduur of tijdsonafhankelijk | F6: 162.15 | G6: 170.45 | H6: 170.45 | I6: 73730133 | J6: Stichting BEZINNZorg
A7: 43A37 | B7: Verblijfstraject middelzwaar | C7: Verblijf/ opname | D7: etmaal | E7: Totaal binnen geldigheidsduur of tijdsonafhankelijk | F7: 398.15 | G7: 418.6 | H7: 418.6 | I7: 73730133 | J7: Stichting BEZINNZorg
A8: 43G08 | B8: Verblijf middel woonhoeve | C8: Verblijf/ opname | D8: etmaal | E8: Totaal binnen geldigheidsduur of tijdsonafhankelijk | F8: 118.7 | G8: 124.8 | H8: 124.8 | I8: 73730133 | J8: Stichting BEZINNZorg
A9: 43G09 | B9: Verblijf middel gezinshuis | C9: Verblijf/ opname | D9: etmaal | E9: per week | F9: 131.9 | G9: 138.65 | H9: 138.65 | I9: 73730133 | J9: Stichting BEZINNZorg
A10: 43G10 | B10: Verblijf middel gezinshuis-plus | C10: Verblijf/ opname | D10: etmaal | E10: per week | F10: 184.6 | G10: 194.05 | H10: 194.05 | I10: 73730133 | J10: Stichting BEZINNZorg
A11: 44A09 | B11: Logeren laag intensief | C11: Logeren / Respijtzorg | D11: etmaal | E11: Totaal binnen geldigheidsduur of tijdsonafhankelijk | F11: 237.3 | G11: 249.45 | H11: 249.45 | I11: 73730133 | J11: Stichting BEZINNZorg
A12: 44G02 | B12: Verblijf langdurig (beschermd) wonen | C12: Verblijf/ opname | D12: etmaal | E12: per week | F12: 230.7 | G12: 242.55 | H12: 242.55 | I12: 73730133 | J12: Stichting BEZINNZorg
A13: 45A04 | B13: Individuele begeleiding basis | C13: Ambulant | D13: uur | E13: Totaal binnen geldigheidsduur of tijdsonafhankelijk | F13: 81.75 | G13: 85.95 | H13: 85.95 | I13: 73730133 | J13: Stichting BEZINNZorg
A14: 45A49 | B14: Groepsbegeleiding basis | C14: Ambulant | D14: uur | E14: Totaal binnen geldigheidsduur of tijdsonafhankelijk | F14: 21.05 | G14: 22.15 | H14: 22.15 | I14: 73730133 | J14: Stichting BEZINNZorg
A15: 45A51 | B15: Gezinsbegeleiding basis | C15: Ambulant | D15: uur | E15: Totaal binnen geldigheidsduur of tijdsonafhankelijk | F15: 81.75 | G15: 85.95 | H15: 85.95 | I15: 73730133 | J15: Stichting BEZINNZorg
A16: 45A53 | B16: Individuele begeleiding specialistisch | C16: Ambulant | D16: uur | E16: Totaal binnen geldigheidsduur of tijdsonafhankelijk | F16: 104.15 | G16: 109.5 | H16: 109.5 | I16: 73730133 | J16: Stichting BEZINNZorg
A17: 45A56 | B17: Gezinsbegeleiding specialistisch | C17: Ambulant | D17: uur | E17: Totaal binnen geldigheidsduur of tijdsonafhankelijk | F17: 104.15 | G17: 109.5 | H17: 109.5 | I17: 73730133 | J17: Stichting BEZINNZorg
A18: 41G01 | B18: Gezinsdagbehandeling | C18: Dagbesteding / dagbehandeling | D18: uur | E18: per week | G18: 152.5 | H18: 150 | I18: 73737045 | J18: PsyValens B.V.
A19: 50G40 | B19: Advies en ondersteuning vanuit jeugdhulpaanbieders bij complexe problematiek | C19: Advies | D19: uur | E19: Totaal binnen geldigheidsduur of tijdsonafhankelijk | G19: 130.3 | H19: 127 | I19: 73737045 | J19: PsyValens B.V.
A20: 52G09 | B20: Individuele behandeling specialistisch | C20: Ambulant | D20: uur | E20: Totaal binnen geldigheidsduur of tijdsonafhankelijk | G20: 137.2 | H20: 135 | I20: 73737045 | J20: PsyValens B.V.
A21: 52G12 | B21: Individuele behandeling specialistisch licht medicatiecontrole | C21: Ambulant | D21: uur | E21: Totaal binnen geldigheidsduur of tijdsonafhankelijk | G21: 183.05 | H21: 180 | I21: 73737045 | J21: PsyValens B.V.
A22: 45G04 | B22: Systeemtherapie | C22: Intensief ambulant | D22: uur | E22: Totaal binnen geldigheidsduur of tijdsonafhankelijk | G22: 148.25 | H22: 148.25 | I22: 94067719 | J22: MeJa B.V.
